Cogmind - Beta 14 @@@ ROGUE MODE // 2024.10.30 @ 21:59:28 Player: Gabe+Kate4EVR Result: Core destroyed Performance ------------- Evolutions (0) 0 Regions Visited (2) 400 Robots Destroyed (22) 110 Value Destroyed (602) 602 Prototype IDs (1) 20 Alien Tech Used (0) 0 Bonus (0) 0 TOTAL SCORE: 1132 Bonus ------- None Cogmind --------- Core Integrity 0/250 Matter 265/300 Energy 250/250 System Corruption 6% Temperature Cool (0) Movement Core (1500) Ox29 Location -10/Subcaves Parts ------- > --- POWER (1) -------- Ion Engine > --- PROPULSION (2) --- Armored Wheel Armored Wheel > --- UTILITY (2) ------ Improved Heat Sink Huge Storage Unit > --- WEAPON (2) ------- EM Pulse Gun Flamer > --- INVENTORY (25) --- Ion Engine Subdweller Power Source Aluminum Leg Aluminum Leg Aluminum Leg Aluminum Leg Aluminum Leg Aluminum Leg Aluminum Leg Aluminum Leg Aluminum Leg Armored Wheel Armored Wheel Heat Sink Heat Sink Disposable Heat Sink Disposable Heat Sink Subdweller Optics ECM Suite Improved Medium Laser Improved Medium Laser Improved Medium Laser Peak State ------------ > --- POWER ------------ Subdweller Power Source > --- PROPULSION ------- Armored Wheel Armored Wheel > --- UTILITY ---------- Improved Heat Sink Huge Storage Unit > --- WEAPON ----------- Improved Medium Laser Improved Medium Laser > --- INVENTORY -------- Ion Engine Ion Engine Aluminum Leg Aluminum Leg Aluminum Leg Aluminum Leg Aluminum Leg Aluminum Leg Aluminum Leg Aluminum Leg Aluminum Leg Armored Wheel Armored Wheel Heat Sink Heat Sink Subdweller Optics ECM Suite EM Pulse Gun Improved Medium Laser [Rating: 18] Favorites ----------- Power Ion Engine Engine Ion Engine Propulsion Armored Wheel Leg Aluminum Leg Wheel Armored Wheel Utility Huge Storage Unit Device Improved Heat Sink Storage Huge Storage Unit Weapon Improved Medium Laser Energy Gun Improved Medium Laser Ballistic Gun Light Assault Rifle Special Weapon Flamer Build | -11 -10 -10 ------- Run | Yrd Mat Sub Slots Evolved . | . . . Power . | . . . Propulsion . | . . . Utility . | . . . Weapon . | . . . Parts Attached 36 | 6 23 7 Power 6 | 1 3 2 Engine 6 | 1 3 2 Core . | . . . Reactor . | . . . Propulsion 11 | 2 9 . Treads . | . . . Leg 9 | 2 7 . Wheel 2 | . 2 . Hover . | . . . Flight . | . . . Utility 7 | 1 6 . Device 3 | . 3 . Storage 4 | 1 3 . Processor . | . . . Hackware . | . . . Protection . | . . . Artifact . | . . . Weapon 12 | 2 5 5 Energy Gun 7 | 1 3 3 Energy Cannon . | . . . Ballistic Gun 3 | 1 2 . Ballistic Cannon . | . . . Launcher . | . . . Special Weapon 2 | . . 2 Impact Weapon . | . . . Slashing Weapon . | . . . Piercing Weapon . | . . . Special Melee Weapon . | . . . Unidentified Prototypes 1 | . 1 . Parts Lost . | . . . Power . | . . . Propulsion . | . . . Utility . | . . . Weapon . | . . . Highest Loss Streak . | . . . To Critical Strikes . | . . . Average Slot Usage (%) 97 | . 95 100 Engine 14 | . 14 14 Leg 8 | . 13 . Wheel 19 | . 14 28 Device 11 | . 10 14 Storage 13 | . 13 14 Energy Gun 22 | . 21 22 Ballistic Gun 4 | . 6 . Special Weapon 1 | . . 5 Peak Build Rating 18 | 6 17 18 Average Rating 13 | 4 11 17 On Entrance 7 | . 6 17 Naked Turns . | . . . Heaviest Build 92 | 14 92 92 Greatest Support 24 | 20 24 24 Greatest Overweight (x) 3 | . 3 3 Average Overweight (x) 1 | . 1 3 Largest Inventory Capacity 25 | 8 25 25 Average Capacity 19 | 6 16 25 Most Carried 22 | 1 17 22 Average Carried 13 | . 9 20 Final Capacity 25 | 8 25 25 Final Carried 22 | 1 17 22 Class Distribution -------------------- 86% | Mutant 13% | Scavenger-Mutant Dominant Class ---------------- Mutant | -10/Materials Mutant | -10/Subcaves Resources | -11 -10 -10 ----------- Run | Yrd Mat Sub Matter Collected 625 | 196 389 40 Remotely . | . . . Salvage Created 974 | . 804 170 Parts 68 | . 53 15 Haulers Intercepted . | . . . Recyclers Shooed 2 | . 2 . Parts Field Recycled . | . . . Retrieved Matter . | . . . Parts Self-Destructed 3 | . . 3 Prevented . | . . . Kills | -11 -10 -10 ------- Run | Yrd Mat Sub Combat Hostiles Destroyed 18 | . 17 1 Guns 18 | . 17 1 Classes Destroyed 5 | . 4 1 Recycler 2 | . 2 . Watcher 2 | . 2 . Swarmer 4 | . 4 . Grunt 13 | . 13 . Subdweller 1 | . . 1 Best Kill Streak 5 | . 5 1 Combat Bots Only 5 | . 5 1 Max Kills in Single Turn 2 | . 2 1 Gunslinging . | . . . Exploded . | . . . Melee . | . . . Uniques/NPCs Destroyed . | . . . Combat | -11 -10 -10 -------- Run | Yrd Mat Sub Hostile Shots Fired 79 | . 75 4 Missed 29 | . 28 1 Damage Taken 789 | . 560 229 Core 260 | . 156 104 Absorbed by Shields . | . . . Core Remaining (%) 100 | 100 . . Volleys Fired 109 | . 66 43 Largest 2 | . 2 2 Hottest 156 | . 112 156 Shots Fired 214 | . 128 86 Gun 198 | . 128 70 Cannon . | . . . Launcher . | . . . Special 16 | . . 16 Kinetic 55 | . 55 . Thermal 148 | . 73 75 Explosive . | . . . Electromagnetic 11 | . . 11 Robot Hit Streak 15 | . 7 15 Robot Miss Streak 5 | . 5 1 Penetration Max . | . . . Secondary Targets 3 | . 3 . Max Gunslinging Chain 1 | . 1 . Shots Hit Robots 92 | . 72 20 Core Hits 42 | . 34 8 Critical Kills . | . . . Critical Parts Destroyed . | . . . Critical Strikes 3 | . 3 . Burn 3 | . 3 . Melee Attacks . | . . . Impact . | . . . Slashing . | . . . Piercing . | . . . Sneak Attacks . | . . . Combat Hostiles . | . . . Follow-up Attacks . | . . . Damage Inflicted 1348 | . 950 398 Guns 1254 | . 950 304 Cannons . | . . . Explosions . | . . . Melee . | . . . Ramming 94 | . . 94 Kinetic 314 | . 314 . Thermal 940 | . 636 304 Explosive . | . . . Electromagnetic . | . . . Impact . | . . . Slashing . | . . . Piercing . | . . . Highest Corruption 6 | . . 6 Average Corruption 3 | . . 3 Corruption Purged . | . . . Corruption Blocked . | . . . Effects 1 | . . 1 Matter Fused 1 | . . 1 Overload Shots . | . . . Overflow Damage . | . . . Projectiles . | . . . Explosions . | . . . Melee . | . . . Knockbacks . | . . . Impact . | . . . Kinetic . | . . . Secondary . | . . . Self-Inflicted Damage 94 | . . 94 Shots . | . . . Rammed . | . . . Targets Rammed . | . . . Kicked . | . . . Crushed . | . . . Highest Temperature 166 | . 166 . Average Temperature 50 | . 50 . Received Heat Transfer 270 | . 270 . Siege Activations . | . . . Robots Corrupted . | . . . Combat Hostiles . | . . . Parts Fried . | . . . Impact Corruptions . | . . . Robots Melted . | . . . Combat Hostiles . | . . . Parts Melted 4 | . 4 . Heat Transferred 2553 | . 1887 666 Parts Sabotaged . | . . . Parts Stolen . | . . . Parts Stripped . | . . . Power Chain Reactions . | . . . Alert | -11 -10 -10 ------- Run | Yrd Mat Sub Peak Influence 299 | . 299 . Initial . | . . . Average 139 | . 149 . Maximum Alert Level 1 | . 1 . Low Security (%) 83 | 100 82 . Level 1 16 | . 17 . Level 2 . | . . . Level 3 . | . . . Level 4 . | . . . Level 5 . | . . . High Security . | . . . Max Security . | . . . Squads Dispatched 4 | . 4 . Investigation 3 | . 3 . Extermination . | . . . Reinforcement 1 | . 1 . Assault . | . . . Garrison . | . . . Intercept . | . . . Searches Triggered . | . . . Construction Impeded . | . . . Haulers Reinforced . | . . . Active Scanning Responses . | . . . Cargo Convoy Interrupts . | . . . Stealth | -11 -10 -10 --------- Run | Yrd Mat Sub Distress Signals 1 | . 1 . Communications Jammed . | . . . Distress Signals . | . . . Times Spotted 25 | . 24 1 Peak Tracking Total 6 | . 6 1 Tactical Retreats . | . . . Traps | -11 -10 -10 ------- Run | Yrd Mat Sub Traps Triggered 3 | . 3 . Indirectly . | . . . Trap Hack Attempts . | . . . Triggered . | . . . Disarmed . | . . . Reprogrammed . | . . . Reused . | . . . Traps Extracted . | . . . Installed . | . . . Triggered . | . . . Machines | -11 -10 -10 ---------- Run | Yrd Mat Sub Machines Disabled 1 | . 1 . Max in Single Turn 1 | . 1 . Machines Repaired . | . . . Machines Dismantled . | . . . Machines Sabotaged . | . . . Overloaded Fab Kills . | . . . Hacking | -11 -10 -10 --------- Run | Yrd Mat Sub Machines Accessed . | . . . Terminals . | . . . Fabricators . | . . . Repair Stations . | . . . Recycling Units . | . . . Scanalyzers . | . . . Garrison Access . | . . . Total Hacks . | . . . Successful . | . . . Failed . | . . . Catastrophic . | . . . Database Lockouts . | . . . Manual . | . . . Terminals . | . . . Fabricators . | . . . Repair Stations . | . . . Recycling Units . | . . . Scanalyzers . | . . . Garrison Access . | . . . Terminal Hacks . | . . . Fabricator Hacks . | . . . Repair Station Hacks . | . . . Recycling Unit Hacks . | . . . Scanalyzer . | . . . Garrison Access Hacks . | . . . Unauthorized Hacks . | . . . Terminals . | . . . Fabricators . | . . . Repair Stations . | . . . Recycling Units . | . . . Scanalyzers . | . . . Garrison Access . | . . . Data Cores Recovered . | . . . Used . | . . . Hacking Detections . | . . . Full Trace Events . | . . . Feedback Events . | . . . Feedback Blocked . | . . . Robot Schematics Acquired . | . . . Robots Built . | . . . Authchips . | . . . Time . | . . . Total Robot Build Rating . | . . . Part Schematics Acquired . | . . . Parts Built . | . . . Authchips . | . . . Time . | . . . Total Part Build Rating . | . . . Parts Repaired . | . . . Time . | . . . Parts Recycled . | . . . Recycled Matter . | . . . Retrieved Matter . | . . . Retrieved Components . | . . . Parts Scanalyzed . | . . . Part Schematics Acquired . | . . . Parts Damaged . | . . . Bothacking | -11 -10 -10 ------------ Run | Yrd Mat Sub Used RIF Installer . | . . . Robots Hacked . | . . . Non-combat . | . . . Combat . | . . . Robot Hacks Applied . | . . . Relay Couplers Released . | . . . Fabnet Peak Effective % . | . . . Robots Rewired . | . . . Allies Hacked . | . . . Hacks Repelled . | . . . Allies | -11 -10 -10 -------- Run | Yrd Mat Sub Total Allies . | . . . Largest Group . | . . . Highest-Rated Group . | . . . Highest-Rated Ally . | . . . Total Orders . | . . . Ally Attacks . | . . . Total Damage . | . . . Kills . | . . . Allies Corrupted . | . . . Allies Melted . | . . . Intel | -11 -10 -10 ------- Run | Yrd Mat Sub Robot Analysis Total . | . . . Derelict Logs Recovered . | . . . Drone Launches . | . . . Drone Recoveries . | . . . Exploration | -11 -10 -10 ------------- Run | Yrd Mat Sub Turns Passed 1813 | 72 1069 672 Spaces Moved 838 | 59 452 327 Core 11 | 11 . . Treads . | . . . Legs 291 | 48 243 . Wheels 536 | . 209 327 Hover . | . . . Flight . | . . . Fastest Speed 50 | 50 90 135 Average Speed 126 | 106 123 135 Slowest Speed 135 | 120 135 135 Overloaded Moves . | . . . Propulsion Burnouts . | . . . Robots Hopped . | . . . Cave-ins Triggered . | . . . Exploration Rate (%) 28 | 5 69 10 Regions Visited 2 Branch Regions 1 Pre-discovered Areas . | . . . Known Exits Taken . | . . . Unknown Exits Taken 2 | 1 1 . Scrap Searched 2 | . . 2 Spaces Dug . | . . . Terrain Destroyed . | . . . Melee . | . . . Projectile . | . . . AOE . | . . . Terrain Rammed 11 | . . 11 Walls Destroyed . | . . . Machines Disabled . | . . . Actions | -11 -10 -10 --------- Run | Yrd Mat Sub Total 1306 | 65 849 392 Wait 268 | . 267 1 Move 836 | 58 451 327 Hop . | . . . Pick Up 23 | 1 19 3 Fast Attach 13 | 6 6 1 Attach . | . . . Detach 2 | . 1 1 Swap 23 | . 17 6 Drop 22 | . 22 . Fire 109 | . 66 43 Melee . | . . . Ram 10 | . . 10 Kick . | . . . Crush . | . . . Escape Stasis . | . . . Rewire . | . . . Trap . | . . . Miscellaneous . | . . . Route ------- -11/Scrapyard -10/Materials (discovered 5 exits: [*Mat x2] / [*Min x2] / [*Sub]) -10/Subcaves History --------- Turn | Location | Event 4 | -11/Scrapyard | Discovered new exit (range 14) 73 | -11/Scrapyard | Entered Materials 237 | -10/Materials | Discovered new exit (range 9) 304 | -10/Materials | Build established: Mutant 507 | -10/Materials | Discovered new exit (range 7) 799 | -10/Materials | Discovered new exit (range 7) 816 | -10/Materials | Discovered new exit (range 12) 845 | -10/Materials | Core integrity fell below 50% 1136 | -10/Materials | Discovered new exit (range 4) 1142 | -10/Materials | Entered Subcaves 1748 | -10/Subcaves | Core integrity fell below 20% 1814 | -10/Subcaves | Core destroyed Last Messages --------------- 01750_ Slammed into Twisted Machinery. 01750_ EM Pulse Gun broken. 01750_ Destabilizing: Short circuit. 01750_ Destabilizing: Core damaged (-12). 01752_ Slammed into Twisted Machinery. 01752_ Destabilizing: Core damaged (-5). 01754_ Slammed into Twisted Machinery. 01754_ Arm. Wheel broken. 01754_ Destabilizing: Short circuit. 01769_ Slammed into Twisted Machinery. 01769_ Destabilizing: System corrupted (+2). 01784_ Slammed into Twisted Machinery. 01784_ Destabilizing: System corrupted (+2). 01784_ Destabilizing: System corrupted (+1). 01790_ System corrupted: Matter fused (-5). 01799_ Slammed into Twisted Machinery. 01799_ Destabilizing: Core damaged (-12). 01799_ Destabilizing: Core damaged (-7). 01814_ Slammed into Twisted Machinery. 01814_ Destabilizing: Core damaged (-12). Map ----- +----------------------------------------------------+ | ????????????????## #??????????????? | | ????????????????# # ##?????????????? | | ????????????????## ### #?????????????? | | ????????????????# #?## ##????????????? | | ????????????????## ##?# #????????????? | | ????????????????# ### ##????????????? | | ????????????????## ## ##?????????????? | | ????????????????## ## ##??????????????? | | ????????????????# # ##??????????????? | | ????????????????## ### #??????????????? | | ????????????????# # ##??????????????? | | ????????????????# # #???????????????? | | ????????????????### ##### #???????????????? | | ??????????????????## #??###???????????????? | | ???????????????????## #????????????????????? | | ????????????????????# ###???????????????????? | | ???????????????????## #???????????????????? | | ???????????????????# ##???????????????????? | | ??????????????###### #????????????????????? | | ??????????????#"& ##< ##???????????????????? | | ??????????????# # & #???????????????????? | | ??????????????# ##"#<%& ##??????????????????? | | ??????????????# %###&&& #??????????????????? | | ??????????????#"%## #??????????????????? | | ??????????????####### ####??????????????????? | | ????????????????????#@ #?????????????????????? | | ??????????????????###""###???????????????????? | | ?????????????????##""""""#???????????????????? | | ?????????????????# "# ##""####???????????????? | | ?????????????????# "###?""" ?#"?????????????? | | ?????????????????#" #????" ""?????????????? | | ?????????????????## ##???" ?????????????? | | ???????????????### #?? ## #????????????? | | ??????????????## ##? ##??##????????????? | | ??????????????# ## #??????????????????? | | ??????????????# #????????????????????? | | ??????????????# #????????????????????? | | ??????????????# # ##????????????????????? | | ??????????????## ### #?????????????????????? | | ???????????????# #### ###??#????????????????? | | ???????????????#### # ##???????????????? | | ????????????????## #???????????????? | | ??????????????### # # #??????????? | | ??????????????# ####? #??????????? | | ??????????????# ##?????# #??????????? | | ??????????????## ##???????? #??????????? | | ???????????????## ##?????????? #?????????? | | ???????????????# #????????????? ?????????? | | ???????????????## #????????????? ?????????? | | ????????????????# ??????????????????????? | +----------------------------------------------------+ Best States ------------- Heat Dissipation 39 Energy Generation 15 Energy Capacity 250 Matter Stores 300 Matter Capacity 300 Sight Range 16 Terrain Scan Density 10 Evasion (%) 55 Item Schematics ----------------- None Robot Schematics ------------------ None Fabricated ------------ Nothing Alien Tech Used ----------------- None Achievements -------------- None Challenges ------------ None Game ------ Seed SpacefoldSurveybotAutogun Manual? 0 Play Time 00:09:09 Cumulative 200.3 hours Start 2024.10.30 @ 21:49:30 End 2024.10.30 @ 21:59:28 Sessions 1 Manual Loads 0 Difficulty Rogue Special Mode None Game No. 389 Rogue 389 Adventurer 0 Explorer 0 Win Type - Total 0 Types 0/0/0/0/0/0/0/0/0 Lore% 42 Gallery% 64 Achievement% 48 Wizard Run 0 Options --------- Layout 0 ASCII 0 Keyboard 1 Movement Numpad Keybinds 0 Fullscreen 2 Font 18/X11 Map View 76x50 Zoom Use 0% Tactical HUD 1 Map Filters NONE Filters NONE Steam 1 RUN: 06b4d0c4-714b-4e5a-9f41-953e09a76a76